[Event "Titled Tuesday Blitz February 01 A 2022"]
[White "Yuan, Qingyu"]
[Black "Bortnyk, Olexandr"]
[WhiteFideId "8609772"]
[BlackFideId "14120828"]
[WhiteElo "2359"]
[BlackElo "2723"]
[Result "0-1"]
[Round "03"]
[TimeControl "180+1"]
[Date "2022.02.01"]
[WhiteClock "0:00:04"]
[BlackClock "0:00:05"]

1. Nf3 {[%clk 0:03:00]}  Nf6 {[%clk 0:02:51]} 2. g3 {[%clk 0:03:00]}  d5 {[%clk 0:02:51]} 3. Bg2 {[%clk 0:03:00]}  Bf5 {[%clk 0:02:51]} 4. O-O {[%clk 0:02:59]}  e6 {[%clk 0:02:52]} 5. c4 {[%clk 0:02:59]}  c6 {[%clk 0:02:53]} 6. Qb3 {[%clk 0:02:59]}  Qb6 {[%clk 0:02:52]} 7. d3 {[%clk 0:02:59]}  Nbd7 {[%clk 0:02:52]} 8. cxd5 {[%clk 0:02:58]}  exd5 {[%clk 0:02:44]} 9. Qc2 {[%clk 0:02:57]}  Be7 {[%clk 0:02:30]} 10. Nc3 {[%clk 0:02:57]}  O-O {[%clk 0:02:13]} 11. e4 {[%clk 0:02:57]}  dxe4 {[%clk 0:02:12]} 12. dxe4 {[%clk 0:02:58]}  Be6 {[%clk 0:02:13]} 13. Be3 {[%clk 0:02:42]}  Qa5 {[%clk 0:02:03]} 14. Nd4 {[%clk 0:02:41]}  Bc4 {[%clk 0:02:01]} 15. Rfd1 {[%clk 0:02:36]}  Ne5 {[%clk 0:01:56]} 16. h3 {[%clk 0:02:27]}  Rfd8 {[%clk 0:01:53]} 17. f4 {[%clk 0:01:58]}  Nd3 {[%clk 0:01:51]} 18. e5 {[%clk 0:01:40]}  Nb4 {[%clk 0:01:26]} 19. Qf2 {[%clk 0:01:30]}  Nfd5 {[%clk 0:01:26]} 20. Bd2 {[%clk 0:01:26]}  Bc5 {[%clk 0:01:13]} 21. Nxd5 {[%clk 0:00:51]}  Bxd5 {[%clk 0:01:14]} 22. a3 {[%clk 0:00:46]}  Bxd4 {[%clk 0:00:40]} 23. Qxd4 {[%clk 0:00:45]}  Bxg2 {[%clk 0:00:40]} 24. Bxb4 {[%clk 0:00:39]}  Rxd4 {[%clk 0:00:38]} 25. Bxa5 {[%clk 0:00:39]}  Rxd1+ {[%clk 0:00:39]} 26. Rxd1 {[%clk 0:00:39]}  Bxh3 {[%clk 0:00:40]} 27. Kf2 {[%clk 0:00:34]}  b6 {[%clk 0:00:40]} 28. Bb4 {[%clk 0:00:29]}  Be6 {[%clk 0:00:36]} 29. Rd6 {[%clk 0:00:28]}  Rc8 {[%clk 0:00:35]} 30. Ke3 {[%clk 0:00:26]}  g6 {[%clk 0:00:33]} 31. Kf2 {[%clk 0:00:21]}  Kg7 {[%clk 0:00:31]} 32. Rd2 {[%clk 0:00:21]}  c5 {[%clk 0:00:29]} 33. Bc3 {[%clk 0:00:21]}  Kf8 {[%clk 0:00:28]} 34. Rd3 {[%clk 0:00:21]}  Ke7 {[%clk 0:00:27]} 35. Rd6 {[%clk 0:00:21]}  h5 {[%clk 0:00:26]} 36. Ke3 {[%clk 0:00:20]}  h4 {[%clk 0:00:21]} 37. gxh4 {[%clk 0:00:20]}  Rh8 {[%clk 0:00:21]} 38. Be1 {[%clk 0:00:20]}  Rc8 {[%clk 0:00:17]} 39. Bf2 {[%clk 0:00:20]}  Kf8 {[%clk 0:00:17]} 40. Be1 {[%clk 0:00:17]}  Kg7 {[%clk 0:00:17]} 41. Kf3 {[%clk 0:00:17]}  Kh6 {[%clk 0:00:17]} 42. Kg3 {[%clk 0:00:18]}  Kh5 {[%clk 0:00:17]} 43. Bd2 {[%clk 0:00:18]}  Rb8 {[%clk 0:00:15]} 44. Be1 {[%clk 0:00:18]}  Kh6 {[%clk 0:00:15]} 45. Bd2 {[%clk 0:00:18]}  Kg7 {[%clk 0:00:15]} 46. Bc3 {[%clk 0:00:18]}  Kf8 {[%clk 0:00:15]} 47. Bd2 {[%clk 0:00:18]}  Ke7 {[%clk 0:00:16]} 48. Kf3 {[%clk 0:00:18]}  Rh8 {[%clk 0:00:15]} 49. Kg3 {[%clk 0:00:19]}  Rb8 {[%clk 0:00:13]} 50. Be1 {[%clk 0:00:19]}  Rc8 {[%clk 0:00:12]} 51. Bd2 {[%clk 0:00:20]}  Ke8 {[%clk 0:00:10]} 52. Be1 {[%clk 0:00:20]}  Rb8 {[%clk 0:00:09]} 53. Bd2 {[%clk 0:00:20]}  Rb7 {[%clk 0:00:06]} 54. Be1 {[%clk 0:00:20]}  Rd7 {[%clk 0:00:05]} 55. Bc3 {[%clk 0:00:18]}  Ke7 {[%clk 0:00:05]} 56. Rd2 {[%clk 0:00:13]}  Rxd2 {[%clk 0:00:05]} 57. Bxd2 {[%clk 0:00:14]}  Kd7 {[%clk 0:00:05]} 58. Kf3 {[%clk 0:00:13]}  Kc6 {[%clk 0:00:06]} 59. Ke4 {[%clk 0:00:13]}  Kb5 {[%clk 0:00:06]} 60. Kd3 {[%clk 0:00:13]}  Kc6 {[%clk 0:00:05]} 61. Ke3 {[%clk 0:00:07]}  Kd5 {[%clk 0:00:05]} 62. Bc3 {[%clk 0:00:07]}  Kc4 {[%clk 0:00:05]} 63. Kd2 {[%clk 0:00:07]}  Kb3 {[%clk 0:00:02]} 64. Kd3 {[%clk 0:00:07]}  a5 {[%clk 0:00:02]} 65. Kd2 {[%clk 0:00:07]}  a4 {[%clk 0:00:03]} 66. Kc1 {[%clk 0:00:08]}  b5 {[%clk 0:00:03]} 67. Bd2 {[%clk 0:00:08]}  b4 {[%clk 0:00:03]} 68. Be3 {[%clk 0:00:07]}  bxa3 {[%clk 0:00:03]} 69. bxa3 {[%clk 0:00:07]}  c4 {[%clk 0:00:04]} 70. Bc5 {[%clk 0:00:07]}  c3 {[%clk 0:00:04]} 71. Bb4 {[%clk 0:00:08]}  Bf5 {[%clk 0:00:04]} 72. Kd1 {[%clk 0:00:08]}  Kb2 {[%clk 0:00:04]} 73. e6 {[%clk 0:00:06]}  c2+ {[%clk 0:00:04]} 74. Ke2 {[%clk 0:00:04]}  c1=Q {[%clk 0:00:05]} 0-1


[Site "https://www.chess.com"]

[Event "Titled Tuesday Blitz February 01 A 2022"]
[White "Andreikin, Dmitry"]
[Black "Aravindh, Chithambaram VR."]
[WhiteFideId "4158814"]
[BlackFideId "5072786"]
[WhiteElo "3030"]
[BlackElo "2861"]
[Result "1-0"]
[Round "04"]
[TimeControl "180+1"]
[Date "2022.02.01"]
[WhiteClock "0:00:39"]
[BlackClock "0:00:12"]

1. d4 {[%clk 0:03:00]}  e6 {[%clk 0:02:58]} 2. c4 {[%clk 0:02:58]}  f5 {[%clk 0:02:57]} 3. Nc3 {[%clk 0:02:58]}  Nf6 {[%clk 0:02:57]} 4. Bg5 {[%clk 0:02:58]}  Bb4 {[%clk 0:02:51]} 5. e3 {[%clk 0:02:56]}  h6 {[%clk 0:02:47]} 6. Bh4 {[%clk 0:02:54]}  b6 {[%clk 0:02:28]} 7. Ne2 {[%clk 0:02:45]}  Bb7 {[%clk 0:02:27]} 8. a3 {[%clk 0:02:42]}  Be7 {[%clk 0:02:26]} 9. Nf4 {[%clk 0:02:39]}  g5 {[%clk 0:02:07]} 10. Ng6 {[%clk 0:02:38]}  Rg8 {[%clk 0:01:56]} 11. Nxe7 {[%clk 0:02:37]}  Qxe7 {[%clk 0:01:57]} 12. Bg3 {[%clk 0:02:37]}  d6 {[%clk 0:01:56]} 13. c5 {[%clk 0:02:35]}  dxc5 {[%clk 0:01:44]} 14. dxc5 {[%clk 0:02:31]}  e5 {[%clk 0:01:25]} 15. Bc4 {[%clk 0:02:27]}  Rg7 {[%clk 0:01:22]} 16. cxb6 {[%clk 0:01:44]}  f4 {[%clk 0:01:07]} 17. bxc7 {[%clk 0:01:43]}  Qxc7 {[%clk 0:00:53]} 18. Nb5 {[%clk 0:01:42]}  Qc6 {[%clk 0:00:52]} 19. Rc1 {[%clk 0:01:04]}  Rd7 {[%clk 0:00:47]} 20. Qc2 {[%clk 0:00:57]}  Qe4 {[%clk 0:00:23]} 21. Be6 {[%clk 0:00:43]}  Qxg2 {[%clk 0:00:12]} 22. Qg6+ {[%clk 0:00:39]} 1-0


[Site "https://www.chess.com"]

[Event "Titled Tuesday Blitz February 01 A 2022"]
[White "Babazada, Khazar"]
[Black "Wong, Yinn Long"]
[WhiteFideId "13413554"]
[BlackFideId "5707684"]
[WhiteElo "2961"]
[BlackElo "2847"]
[Result "0-1"]
[Round "04"]
[TimeControl "180+1"]
[Date "2022.02.01"]
[WhiteClock "0:02:00"]
[BlackClock "0:01:25"]

1. e4 {[%clk 0:03:00]}  c5 {[%clk 0:02:59]} 2. Nf3 {[%clk 0:02:59]}  g6 {[%clk 0:03:00]} 3. d4 {[%clk 0:02:56]}  cxd4 {[%clk 0:03:01]} 4. Nxd4 {[%clk 0:02:56]}  Nc6 {[%clk 0:03:01]} 5. c4 {[%clk 0:02:56]}  Nf6 {[%clk 0:03:01]} 6. Be3 {[%clk 0:02:57]}  Nxe4 {[%clk 0:02:57]} 7. Be2 {[%clk 0:02:22]}  Qa5+ {[%clk 0:02:39]} 8. Nd2 {[%clk 0:02:14]}  Bg7 {[%clk 0:02:13]} 9. Nb3 {[%clk 0:02:08]}  Qe5 {[%clk 0:02:00]} 10. Nxe4 {[%clk 0:02:02]}  Qxe4 {[%clk 0:01:59]} 11. O-O {[%clk 0:02:02]}  O-O {[%clk 0:01:50]} 12. Nc5 {[%clk 0:02:00]}  Qe5 {[%clk 0:01:36]} 13. Nxd7 {[%clk 0:01:59]}  Bxd7 {[%clk 0:01:29]} 14. Qxd7 {[%clk 0:02:00]}  Qxb2 {[%clk 0:01:27]} 15. Rab1 {[%clk 0:02:00]}  Qxe2 {[%clk 0:01:25]} 0-1


[Site "https://www.chess.com"]

[Event "Titled Tuesday Blitz February 01 A 2022"]
[White "Bashirli, Nail"]
[Black "Willow, Jonah B"]
[WhiteFideId "13406809"]
[BlackFideId "438804"]
[WhiteElo "2333"]
[BlackElo "2261"]
[Result "1-0"]
[Round "04"]
[TimeControl "180+1"]
[Date "2022.02.01"]
[WhiteClock "0:00:25"]
[BlackClock "0:00:05"]

1. e4 {[%clk 0:03:00]}  c5 {[%clk 0:02:59]} 2. Nc3 {[%clk 0:03:00]}  Nc6 {[%clk 0:02:59]} 3. Bb5 {[%clk 0:02:59]}  Nd4 {[%clk 0:02:57]} 4. Nge2 {[%clk 0:02:56]}  e6 {[%clk 0:02:37]} 5. O-O {[%clk 0:02:54]}  a6 {[%clk 0:02:26]} 6. Bd3 {[%clk 0:02:52]}  Nc6 {[%clk 0:02:21]} 7. f4 {[%clk 0:02:50]}  d6 {[%clk 0:02:19]} 8. Ng3 {[%clk 0:02:49]}  Nf6 {[%clk 0:02:17]} 9. Be2 {[%clk 0:02:47]}  Be7 {[%clk 0:02:14]} 10. d3 {[%clk 0:02:47]}  b5 {[%clk 0:02:14]} 11. Be3 {[%clk 0:02:47]}  Bb7 {[%clk 0:02:14]} 12. Qe1 {[%clk 0:02:46]}  b4 {[%clk 0:02:10]} 13. Nd1 {[%clk 0:02:45]}  a5 {[%clk 0:02:05]} 14. Nf2 {[%clk 0:02:45]}  Nd4 {[%clk 0:02:02]} 15. Bd1 {[%clk 0:02:43]}  Qc7 {[%clk 0:01:50]} 16. c3 {[%clk 0:02:34]}  bxc3 {[%clk 0:01:48]} 17. bxc3 {[%clk 0:02:35]}  Nc6 {[%clk 0:01:49]} 18. f5 {[%clk 0:02:30]}  e5 {[%clk 0:01:46]} 19. Ng4 {[%clk 0:02:22]}  Ba6 {[%clk 0:01:41]} 20. c4 {[%clk 0:02:17]}  Nd4 {[%clk 0:01:33]} 21. Nxf6+ {[%clk 0:02:10]}  Bxf6 {[%clk 0:01:33]} 22. Nh5 {[%clk 0:02:10]}  Bc8 {[%clk 0:01:12]} 23. Qg3 {[%clk 0:02:04]}  Kf8 {[%clk 0:00:45]} 24. Rb1 {[%clk 0:01:47]}  h6 {[%clk 0:00:33]} 25. Nxg7 {[%clk 0:01:44]}  Rg8 {[%clk 0:00:23]} 26. Ne6+ {[%clk 0:01:30]}  Bxe6 {[%clk 0:00:22]} 27. Bxh6+ {[%clk 0:01:26]}  Ke7 {[%clk 0:00:22]} 28. Qe1 {[%clk 0:01:17]}  Bd7 {[%clk 0:00:21]} 29. Be3 {[%clk 0:01:17]}  Rg7 {[%clk 0:00:18]} 30. g4 {[%clk 0:01:16]}  Rag8 {[%clk 0:00:18]} 31. h3 {[%clk 0:01:16]}  Rb8 {[%clk 0:00:14]} 32. Rxb8 {[%clk 0:01:11]}  Qxb8 {[%clk 0:00:15]} 33. Qd2 {[%clk 0:01:11]}  Qg8 {[%clk 0:00:14]} 34. Kh2 {[%clk 0:01:06]}  Ke8 {[%clk 0:00:10]} 35. Rg1 {[%clk 0:01:04]}  Bg5 {[%clk 0:00:10]} 36. Bxg5 {[%clk 0:01:02]}  Rxg5 {[%clk 0:00:11]} 37. Qxa5 {[%clk 0:01:02]}  Ke7 {[%clk 0:00:06]} 38. Qd2 {[%clk 0:01:01]}  f6 {[%clk 0:00:06]} 39. Qf2 {[%clk 0:01:00]}  Rg7 {[%clk 0:00:05]} 40. h4 {[%clk 0:00:59]}  Qh7 {[%clk 0:00:05]} 41. Kh3 {[%clk 0:00:57]}  Qh6 {[%clk 0:00:05]} 42. Bb3 {[%clk 0:00:53]}  Bc6 {[%clk 0:00:04]} 43. Rg3 {[%clk 0:00:50]}  Bd7 {[%clk 0:00:04]} 44. Qe3 {[%clk 0:00:50]}  Qh7 {[%clk 0:00:04]} 45. g5 {[%clk 0:00:47]}  Qg8 {[%clk 0:00:04]} 46. g6 {[%clk 0:00:47]}  Qh8 {[%clk 0:00:04]} 47. Bd1 {[%clk 0:00:46]}  Bxf5+ {[%clk 0:00:04]} 48. exf5 {[%clk 0:00:46]}  Nxf5 {[%clk 0:00:05]} 49. Qe4 {[%clk 0:00:46]}  Nxg3 {[%clk 0:00:05]} 50. Kxg3 {[%clk 0:00:45]}  Qh6 {[%clk 0:00:05]} 51. h5 {[%clk 0:00:43]}  Qd2 {[%clk 0:00:05]} 52. Qb7+ {[%clk 0:00:41]}  Kf8 {[%clk 0:00:05]} 53. Qc8+ {[%clk 0:00:41]}  Ke7 {[%clk 0:00:06]} 54. Qc7+ {[%clk 0:00:41]}  Ke8 {[%clk 0:00:06]} 55. Qc8+ {[%clk 0:00:33]}  Ke7 {[%clk 0:00:06]} 56. Bf3 {[%clk 0:00:34]}  Qf4+ {[%clk 0:00:06]} 57. Kg2 {[%clk 0:00:32]}  Qd2+ {[%clk 0:00:07]} 58. Kh3 {[%clk 0:00:32]}  f5 {[%clk 0:00:05]} 59. Qxf5 {[%clk 0:00:27]}  Qf4 {[%clk 0:00:05]} 60. Qxf4 {[%clk 0:00:27]}  exf4 {[%clk 0:00:06]} 61. Kg4 {[%clk 0:00:25]}  Kf6 {[%clk 0:00:06]} 62. Kxf4 {[%clk 0:00:26]}  Ra7 {[%clk 0:00:07]} 63. Be4 {[%clk 0:00:25]}  Rxa2 {[%clk 0:00:07]} 64. h6 {[%clk 0:00:26]}  Rh2 {[%clk 0:00:07]} 65. g7 {[%clk 0:00:25]}  Rh4+ {[%clk 0:00:05]} 66. Kg3 {[%clk 0:00:25]}  Rh1 {[%clk 0:00:05]} 67. g8=Q {[%clk 0:00:25]}  Rg1+ {[%clk 0:00:05]} 68. Bg2 {[%clk 0:00:25]} 1-0


[Site "https://www.chess.com"]

[Event "Titled Tuesday Blitz February 01 A 2022"]
[White "Beerdsen, Thomas"]
[Black "Shirov, Alexei"]
[WhiteFideId "1030108"]
[BlackFideId "2209390"]
[WhiteElo "2647"]
[BlackElo "2878"]
[Result "0-1"]
[Round "04"]
[TimeControl "180+1"]
[Date "2022.02.01"]
[WhiteClock "0:00:05"]
[BlackClock "0:00:39"]

1. e4 {[%clk 0:02:57]}  e5 {[%clk 0:02:59]} 2. Nf3 {[%clk 0:02:56]}  Nc6 {[%clk 0:02:59]} 3. d4 {[%clk 0:02:56]}  exd4 {[%clk 0:02:57]} 4. Bc4 {[%clk 0:02:57]}  Nf6 {[%clk 0:02:55]} 5. O-O {[%clk 0:02:57]}  Bc5 {[%clk 0:02:53]} 6. e5 {[%clk 0:02:52]}  d5 {[%clk 0:02:53]} 7. exf6 {[%clk 0:02:49]}  dxc4 {[%clk 0:02:52]} 8. b4 {[%clk 0:02:44]}  Bxb4 {[%clk 0:02:38]} 9. fxg7 {[%clk 0:02:42]}  Rg8 {[%clk 0:02:37]} 10. Bg5 {[%clk 0:02:41]}  f6 {[%clk 0:02:26]} 11. Bh6 {[%clk 0:02:32]}  Qd5 {[%clk 0:02:16]} 12. c3 {[%clk 0:02:18]}  Bd6 {[%clk 0:02:12]} 13. Re1+ {[%clk 0:02:09]}  Kf7 {[%clk 0:02:11]} 14. Ng5+ {[%clk 0:01:32]}  Kg6 {[%clk 0:02:02]} 15. Ne4 {[%clk 0:01:33]}  Kxh6 {[%clk 0:01:41]} 16. Nxf6 {[%clk 0:01:31]}  Qg5 {[%clk 0:01:40]} 17. Nxg8+ {[%clk 0:01:25]}  Kxg7 {[%clk 0:01:40]} 18. Nd2 {[%clk 0:01:06]}  Bg4 {[%clk 0:01:29]} 19. f3 {[%clk 0:00:39]}  Bh3 {[%clk 0:01:16]} 20. Qe2 {[%clk 0:00:26]}  d3 {[%clk 0:01:15]} 21. Ne4 {[%clk 0:00:27]}  Qe5 {[%clk 0:01:00]} 22. Qf1 {[%clk 0:00:14]}  Qxh2+ {[%clk 0:00:56]} 23. Kf2 {[%clk 0:00:14]}  Rxg8 {[%clk 0:00:54]} 24. Nxd6 {[%clk 0:00:12]}  cxd6 {[%clk 0:00:50]} 25. Re4 {[%clk 0:00:10]}  Kh8 {[%clk 0:00:46]} 26. Ke3 {[%clk 0:00:09]}  Rxg2 {[%clk 0:00:42]} 27. Rxc4 {[%clk 0:00:07]}  Re2+ {[%clk 0:00:40]} 28. Kxd3 {[%clk 0:00:05]}  Bxf1 {[%clk 0:00:39]} 0-1


[Site "https://www.chess.com"]

[Event "Titled Tuesday Blitz February 01 A 2022"]
[White "Boros, Denes"]
[Black "Garriga Cazorla, Pere"]
[WhiteFideId "722340"]
[BlackFideId "32011601"]
[WhiteElo "2464"]
[BlackElo "2458"]
[Result "0-1"]
[Round "04"]
[TimeControl "180+1"]
[Date "2022.02.01"]
[WhiteClock "0:00:11"]
[BlackClock "0:00:11"]

1. Nf3 {[%clk 0:02:50]}  c5 {[%clk 0:02:58]} 2. e4 {[%clk 0:02:49]}  d6 {[%clk 0:02:57]} 3. Bc4 {[%clk 0:02:46]}  Nf6 {[%clk 0:02:56]} 4. Nc3 {[%clk 0:02:45]}  a6 {[%clk 0:02:54]} 5. d4 {[%clk 0:02:46]}  cxd4 {[%clk 0:02:53]} 6. Qxd4 {[%clk 0:02:47]}  Nc6 {[%clk 0:02:53]} 7. Qd3 {[%clk 0:02:46]}  e6 {[%clk 0:02:50]} 8. Bf4 {[%clk 0:02:46]}  b5 {[%clk 0:02:47]} 9. Bb3 {[%clk 0:02:46]}  Qc7 {[%clk 0:02:40]} 10. O-O-O {[%clk 0:02:45]}  Nd7 {[%clk 0:02:33]} 11. Bxd6 {[%clk 0:02:42]}  Bxd6 {[%clk 0:02:26]} 12. Qxd6 {[%clk 0:02:43]}  Qxd6 {[%clk 0:02:27]} 13. Rxd6 {[%clk 0:02:42]}  Bb7 {[%clk 0:02:27]} 14. Ng5 {[%clk 0:02:13]}  Nc5 {[%clk 0:02:19]} 15. f3 {[%clk 0:02:13]}  h6 {[%clk 0:02:16]} 16. Nh3 {[%clk 0:02:10]}  Ke7 {[%clk 0:02:17]} 17. Rhd1 {[%clk 0:02:10]}  g5 {[%clk 0:02:17]} 18. Nf2 {[%clk 0:02:04]}  Rhd8 {[%clk 0:02:13]} 19. Rxd8 {[%clk 0:02:03]}  Nxd8 {[%clk 0:02:11]} 20. h4 {[%clk 0:01:47]}  Nc6 {[%clk 0:02:05]} 21. h5 {[%clk 0:01:47]}  Ne5 {[%clk 0:01:53]} 22. a3 {[%clk 0:01:39]}  Rg8 {[%clk 0:01:45]} 23. Ba2 {[%clk 0:01:15]}  g4 {[%clk 0:01:08]} 24. b4 {[%clk 0:01:15]}  Ncd7 {[%clk 0:00:58]} 25. f4 {[%clk 0:01:14]}  g3 {[%clk 0:00:59]} 26. Nd3 {[%clk 0:01:03]}  Ng4 {[%clk 0:00:58]} 27. Kd2 {[%clk 0:00:58]}  Ndf6 {[%clk 0:00:50]} 28. Nc5 {[%clk 0:00:59]}  Bc6 {[%clk 0:00:48]} 29. Rf1 {[%clk 0:00:31]}  Nxh5 {[%clk 0:00:43]} 30. Nxa6 {[%clk 0:00:29]}  Nh2 {[%clk 0:00:33]} 31. Rg1 {[%clk 0:00:24]}  Nxf4 {[%clk 0:00:33]} 32. Nc7 {[%clk 0:00:23]}  Ng4 {[%clk 0:00:30]} 33. Bb3 {[%clk 0:00:17]}  Rd8+ {[%clk 0:00:30]} 34. Kc1 {[%clk 0:00:17]}  Rd7 {[%clk 0:00:24]} 35. Na6 {[%clk 0:00:16]}  Nf2 {[%clk 0:00:23]} 36. Nb8 {[%clk 0:00:16]}  Rc7 {[%clk 0:00:21]} 37. Kb2 {[%clk 0:00:15]}  Bb7 {[%clk 0:00:18]} 38. Nxb5 {[%clk 0:00:14]}  Rc8 {[%clk 0:00:19]} 39. Nd7 {[%clk 0:00:14]}  Kxd7 {[%clk 0:00:19]} 40. a4 {[%clk 0:00:14]}  Bxe4 {[%clk 0:00:17]} 41. Nc3 {[%clk 0:00:14]}  Rxc3 {[%clk 0:00:16]} 42. a5 {[%clk 0:00:11]}  Rc8 {[%clk 0:00:15]} 43. b5 {[%clk 0:00:12]}  Bxg2 {[%clk 0:00:15]} 44. c4 {[%clk 0:00:12]}  h5 {[%clk 0:00:13]} 45. b6 {[%clk 0:00:11]}  h4 {[%clk 0:00:14]} 46. Ba4+ {[%clk 0:00:11]}  Bc6 {[%clk 0:00:13]} 47. b7 {[%clk 0:00:09]}  Rb8 {[%clk 0:00:13]} 48. a6 {[%clk 0:00:08]}  Kc7 {[%clk 0:00:12]} 49. Ka3 {[%clk 0:00:08]}  Bxa4 {[%clk 0:00:11]} 50. Kxa4 {[%clk 0:00:09]}  Rxb7 {[%clk 0:00:10]} 51. axb7 {[%clk 0:00:09]}  Kxb7 {[%clk 0:00:11]} 52. Kb5 {[%clk 0:00:09]}  N2d3 {[%clk 0:00:10]} 53. c5 {[%clk 0:00:09]}  Nxc5 {[%clk 0:00:10]} 54. Kxc5 {[%clk 0:00:10]}  g2 {[%clk 0:00:11]} 55. Kd4 {[%clk 0:00:10]}  h3 {[%clk 0:00:11]} 56. Ke3 {[%clk 0:00:10]}  h2 {[%clk 0:00:11]} 57. Rb1+ {[%clk 0:00:11]}  Kc7 {[%clk 0:00:11]} 0-1


[Site "https://www.chess.com"]

[Event "Titled Tuesday Blitz February 01 A 2022"]
[White "Bortnyk, Olexandr"]
[Black "Hayrapetyan, Hovik"]
[WhiteFideId "14120828"]
[BlackFideId "13302639"]
[WhiteElo "2883"]
[BlackElo "2812"]
[Result "1-0"]
[Round "04"]
[TimeControl "180+1"]
[Date "2022.02.01"]
[WhiteClock "0:01:12"]
[BlackClock "0:00:56"]

1. e4 {[%clk 0:03:00]}  g6 {[%clk 0:02:59]} 2. d4 {[%clk 0:02:58]}  Bg7 {[%clk 0:02:59]} 3. Nf3 {[%clk 0:02:59]}  d6 {[%clk 0:02:59]} 4. Bc4 {[%clk 0:02:59]}  Nf6 {[%clk 0:02:57]} 5. Qe2 {[%clk 0:02:59]}  c6 {[%clk 0:02:57]} 6. e5 {[%clk 0:02:58]}  dxe5 {[%clk 0:02:57]} 7. dxe5 {[%clk 0:02:58]}  Nd5 {[%clk 0:02:57]} 8. h3 {[%clk 0:02:53]}  O-O {[%clk 0:02:56]} 9. O-O {[%clk 0:02:54]}  Nb6 {[%clk 0:02:42]} 10. Bb3 {[%clk 0:02:46]}  c5 {[%clk 0:02:41]} 11. e6 {[%clk 0:02:21]}  f5 {[%clk 0:02:29]} 12. c3 {[%clk 0:02:11]}  Qc7 {[%clk 0:02:27]} 13. Na3 {[%clk 0:02:11]}  Nc6 {[%clk 0:02:23]} 14. Nb5 {[%clk 0:01:55]}  Qb8 {[%clk 0:02:20]} 15. g3 {[%clk 0:01:56]}  f4 {[%clk 0:02:20]} 16. Bxf4 {[%clk 0:01:56]}  Rxf4 {[%clk 0:02:20]} 17. gxf4 {[%clk 0:01:57]}  a6 {[%clk 0:02:20]} 18. Na3 {[%clk 0:01:56]}  Qxf4 {[%clk 0:02:20]} 19. Rfe1 {[%clk 0:01:43]}  Qf5 {[%clk 0:01:32]} 20. Kg2 {[%clk 0:01:44]}  Nd5 {[%clk 0:01:31]} 21. Bxd5 {[%clk 0:01:35]}  Qxd5 {[%clk 0:01:30]} 22. Nc4 {[%clk 0:01:36]}  Rb8 {[%clk 0:01:16]} 23. Rad1 {[%clk 0:01:35]}  Qh5 {[%clk 0:01:15]} 24. Nb6 {[%clk 0:01:32]}  Bf6 {[%clk 0:01:11]} 25. Qe4 {[%clk 0:01:29]}  c4 {[%clk 0:01:00]} 26. Rd5 {[%clk 0:01:25]}  Qh6 {[%clk 0:00:58]} 27. Qxc4 {[%clk 0:01:24]}  Kg7 {[%clk 0:00:56]} 28. Qe4 {[%clk 0:01:12]} 1-0


[Site "https://www.chess.com"]

[Event "Titled Tuesday Blitz February 01 A 2022"]
[White "Corrales Jimenez, Fidel"]
[Black "Jobava, Baadur"]
[WhiteFideId "3506690"]
[BlackFideId "13601520"]
[WhiteElo "2837"]
[BlackElo "2944"]
[Result "0-1"]
[Round "04"]
[TimeControl "180+1"]
[Date "2022.02.01"]
[WhiteClock "0:00:30"]
[BlackClock "0:01:30"]

1. d4 {[%clk 0:03:00]}  d5 {[%clk 0:02:57]} 2. c4 {[%clk 0:02:59]}  c6 {[%clk 0:02:57]} 3. Nf3 {[%clk 0:02:59]}  Nf6 {[%clk 0:02:58]} 4. Nc3 {[%clk 0:02:58]}  dxc4 {[%clk 0:02:58]} 5. g3 {[%clk 0:02:58]}  Bf5 {[%clk 0:02:52]} 6. Bg2 {[%clk 0:02:44]}  e6 {[%clk 0:02:52]} 7. Ne5 {[%clk 0:02:44]}  Nbd7 {[%clk 0:02:43]} 8. Nxc4 {[%clk 0:02:44]}  h6 {[%clk 0:02:38]} 9. O-O {[%clk 0:02:42]}  Bh7 {[%clk 0:02:38]} 10. a4 {[%clk 0:02:39]}  a5 {[%clk 0:02:36]} 11. e4 {[%clk 0:02:37]}  Bb4 {[%clk 0:02:36]} 12. Qe2 {[%clk 0:02:36]}  O-O {[%clk 0:02:35]} 13. Rd1 {[%clk 0:02:36]}  Nb6 {[%clk 0:02:27]} 14. Ne5 {[%clk 0:02:34]}  Qe7 {[%clk 0:02:25]} 15. g4 {[%clk 0:02:28]}  Nfd7 {[%clk 0:02:21]} 16. Nf3 {[%clk 0:02:12]}  Rad8 {[%clk 0:02:03]} 17. g5 {[%clk 0:02:12]}  hxg5 {[%clk 0:02:04]} 18. Nxg5 {[%clk 0:02:12]}  Bg6 {[%clk 0:02:04]} 19. Qg4 {[%clk 0:02:12]}  Nf6 {[%clk 0:01:58]} 20. Qh4 {[%clk 0:02:11]}  Nh7 {[%clk 0:01:56]} 21. Qg3 {[%clk 0:02:04]}  Nxg5 {[%clk 0:01:45]} 22. Bxg5 {[%clk 0:02:04]}  f6 {[%clk 0:01:45]} 23. Be3 {[%clk 0:02:03]}  Bh5 {[%clk 0:01:45]} 24. Bf3 {[%clk 0:02:02]}  Bxf3 {[%clk 0:01:44]} 25. Qxf3 {[%clk 0:02:03]}  Nc4 {[%clk 0:01:45]} 26. Bc1 {[%clk 0:01:56]}  f5 {[%clk 0:01:40]} 27. e5 {[%clk 0:01:54]}  c5 {[%clk 0:01:36]} 28. d5 {[%clk 0:00:41]}  Nxe5 {[%clk 0:01:36]} 29. Qg3 {[%clk 0:00:40]}  Nf7 {[%clk 0:01:34]} 30. Bf4 {[%clk 0:00:33]}  e5 {[%clk 0:01:32]} 31. Re1 {[%clk 0:00:31]}  exf4 {[%clk 0:01:30]} 32. Qxf4 {[%clk 0:00:30]}  Qg5+ {[%clk 0:01:30]} 33. Qxg5 {[%clk 0:00:30]}  Nxg5 {[%clk 0:01:30]} 0-1


[Site "https://www.chess.com"]

[Event "Titled Tuesday Blitz February 01 A 2022"]
[White "Demchenko, Anton"]
[Black "Wieczorek, Oskar"]
[WhiteFideId "4160258"]
[BlackFideId "1133950"]
[WhiteElo "2899"]
[BlackElo "2673"]
[Result "1-0"]
[Round "04"]
[TimeControl "180+1"]
[Date "2022.02.01"]
[WhiteClock "0:00:26"]
[BlackClock "0:00:06"]

1. e4 {[%clk 0:03:00]}  c5 {[%clk 0:03:00]} 2. Nf3 {[%clk 0:03:00]}  g6 {[%clk 0:03:00]} 3. c3 {[%clk 0:02:59]}  d5 {[%clk 0:03:00]} 4. exd5 {[%clk 0:02:58]}  Qxd5 {[%clk 0:03:00]} 5. Na3 {[%clk 0:02:57]}  Nf6 {[%clk 0:02:56]} 6. d4 {[%clk 0:02:53]}  Bg7 {[%clk 0:02:52]} 7. Bc4 {[%clk 0:02:48]}  Qe4+ {[%clk 0:02:52]} 8. Be3 {[%clk 0:02:48]}  O-O {[%clk 0:02:52]} 9. O-O {[%clk 0:02:39]}  cxd4 {[%clk 0:02:43]} 10. Nxd4 {[%clk 0:02:24]}  a6 {[%clk 0:02:31]} 11. Re1 {[%clk 0:02:22]}  Qe5 {[%clk 0:02:31]} 12. Qd2 {[%clk 0:02:11]}  b5 {[%clk 0:02:03]} 13. Bf1 {[%clk 0:01:54]}  Ne4 {[%clk 0:01:45]} 14. Qc1 {[%clk 0:01:50]}  Bb7 {[%clk 0:01:42]} 15. f3 {[%clk 0:01:49]}  Nf6 {[%clk 0:01:40]} 16. Nac2 {[%clk 0:01:43]}  Qc7 {[%clk 0:01:15]} 17. Bf4 {[%clk 0:01:39]}  Qb6 {[%clk 0:01:11]} 18. Bh6 {[%clk 0:01:32]}  Nc6 {[%clk 0:01:08]} 19. Bxg7 {[%clk 0:01:29]}  Kxg7 {[%clk 0:01:09]} 20. Qe3 {[%clk 0:01:26]}  Nxd4 {[%clk 0:00:55]} 21. Nxd4 {[%clk 0:01:25]}  Nd5 {[%clk 0:00:44]} 22. Qf2 {[%clk 0:01:21]}  Rac8 {[%clk 0:00:34]} 23. a4 {[%clk 0:01:20]}  Rc5 {[%clk 0:00:16]} 24. axb5 {[%clk 0:01:16]}  axb5 {[%clk 0:00:17]} 25. Rac1 {[%clk 0:00:37]}  e6 {[%clk 0:00:14]} 26. b4 {[%clk 0:00:33]}  Rcc8 {[%clk 0:00:08]} 27. Nxb5 {[%clk 0:00:33]}  Ba6 {[%clk 0:00:06]} 28. Qxb6 {[%clk 0:00:30]}  Nxb6 {[%clk 0:00:06]} 29. Nd6 {[%clk 0:00:30]}  Rcd8 {[%clk 0:00:06]} 30. Nxf7 {[%clk 0:00:27]}  Bxf1 {[%clk 0:00:06]} 31. Nxd8 {[%clk 0:00:26]} 1-0


[Site "https://www.chess.com"]